Cogmind - Beta 9.1 @@@ ROGUE MODE // 2019.10.30 @ 22:20:46 Player: fartblaster Result: Destroyed by G-34 Mercenary with Small Laser Performance ------------- Evolutions (0) 0 Regions Visited (2) 400 Robots Destroyed (18) 90 Value Destroyed (290) 290 Prototype IDs (2) 40 Alien Tech Used (0) 0 Bonus (0) 0 TOTAL SCORE: 820 Bonus ------- None Cogmind --------- Core Integrity 0/250 Matter 299/300 Energy 100/100 System Corruption 0% Temperature Cool (303) Location -10/Mines Parts ------- Power (1) Propulsion (2) Aluminum Leg Aluminum Leg Utility (2) Medium Storage Unit Light Armor Plating Weapon (2) Light Assault Rifle Inventory (8) Structural Scanner Utility Shielding Peak State ------------ Power Ion Engine Propulsion Flight Unit Flight Unit Utility Small Storage Unit Sensor Array Weapon EM Pulse Gun Assault Rifle Inventory Light Ion Engine Assault Rifle [Rating: 7] Favorites ----------- Power Ion Engine Engine Ion Engine Propulsion Aluminum Leg Leg Aluminum Leg Wheel Wheel Flight Unit Flight Unit Utility Small Storage Unit Device Structural Scanner Storage Small Storage Unit Protection Utility Shielding Weapon EM Pulse Gun Energy Gun EM Pulse Gun Energy Cannon Beam Cannon Ballistic Gun Assault Rifle Special Weapon Mining Laser Build | -11 -10 -10 ------- Run | Scr Mat Min Slots Evolved . | . . . Power . | . . . Propulsion . | . . . Utility . | . . . Weapon . | . . . Parts Attached 35 | 8 26 1 Power 3 | 1 2 . Engine 3 | 1 2 . Core . | . . . Reactor . | . . . Propulsion 10 | 4 6 . Treads . | . . . Leg 4 | 2 2 . Wheel 2 | 2 . . Hover . | . . . Flight 4 | . 4 . Utility 6 | 1 5 . Device 2 | . 2 . Storage 2 | 1 1 . Processor . | . . . Hackware . | . . . Protection 2 | . 2 . Artifact . | . . . Weapon 16 | 2 13 1 Energy Gun 4 | 1 3 . Energy Cannon 4 | . 4 . Ballistic Gun 7 | 1 5 1 Ballistic Cannon . | . . . Launcher . | . . . Special Weapon 1 | . 1 . Impact Weapon . | . . . Slashing Weapon . | . . . Piercing Weapon . | . . . Special Melee Weapon . | . . . Unidentified Prototypes . | . . . Parts Lost 10 | . 7 3 Power 2 | . 1 1 Propulsion 4 | . 4 . Utility . | . . . Weapon 4 | . 2 2 Highest Loss Streak 5 | . 5 3 Average Slot Usage (%) 78 | . 77 91 Engine 12 | . 12 11 Leg 14 | . 13 28 Flight 5 | . 5 . Device 6 | . 7 . Storage 9 | . 9 14 Protection 6 | . 5 14 Energy Gun 9 | . 9 5 Energy Cannon 6 | . 5 11 Ballistic Gun 7 | . 7 5 Naked Turns . | . . . Heaviest Build 18 | 13 18 18 Greatest Support 26 | 26 20 20 Greatest Overweight (x) 4 | 2 4 . Average Overweight (x) . | . . . Largest Inventory Capacity 8 | 6 8 8 Average Capacity 5 | 4 5 8 Most Carried 6 | 2 6 3 Average Carried 1 | . 1 2 Final Capacity 8 | 6 8 8 Final Carried 2 | 2 2 2 Class Distribution -------------------- 100% | Mutant Dominant Class ---------------- Mutant | -10/Materials Mutant | -10/Mines Resources | -11 -10 -10 ----------- Run | Scr Mat Min Matter Collected 567 | 200 357 10 Remotely . | . . . Salvage Created 527 | . 491 36 Parts 38 | . 33 5 Haulers Intercepted 1 | . 1 . Recyclers Shooed . | . . . Parts Field Recycled . | . . . Retrieved Matter . | . . . Parts Self-Destructed . | . . . Prevented . | . . . Kills | -11 -10 -10 ------- Run | Scr Mat Min Combat Hostiles Destroyed 10 | . 7 3 Guns 4 | . 3 1 Cannons 6 | . 4 2 Classes Destroyed 7 | . 7 . Worker 3 | . 3 . Builder 1 | . 1 . Hauler 1 | . 1 . Recycler 1 | . 1 . Watcher 2 | . 2 . Swarmer 6 | . 3 3 Grunt 4 | . 4 . Best Kill Streak 4 | . 4 3 Combat Bots Only 3 | . 3 3 Max Kills in Single Turn 1 | . 1 1 Gunslinging . | . . . Exploded . | . . . Melee . | . . . Uniques/NPCs Destroyed . | . . . Combat | -11 -10 -10 -------- Run | Scr Mat Min Damage Taken 1027 | . 796 231 Core 259 | . 230 29 Absorbed by Shields . | . . . Core Remaining (%) 100 | 100 . . Volleys Fired 61 | . 49 12 Largest 2 | . 2 2 Hottest 100 | . 100 100 Shots Fired 83 | . 62 21 Gun 41 | . 31 10 Cannon 42 | . 31 11 Launcher . | . . . Special . | . . . Kinetic 22 | . 18 4 Thermal 49 | . 32 17 Explosive . | . . . Electromagnetic 12 | . 12 . Robot Hit Streak 10 | . 10 7 Robot Miss Streak 5 | . 5 3 Penetration Max . | . . . Secondary Targets 1 | . 1 . Max Gunslinging Chain 1 | . 1 . Shots Hit Robots 42 | . 30 12 Core Hits 22 | . 18 4 Critical Hits . | . . . Critical Kills . | . . . Critical Parts Destroyed . | . . . Melee Attacks . | . . . Impact . | . . . Slashing . | . . . Piercing . | . . . Sneak Attacks . | . . . Combat Hostiles . | . . . Follow-up Attacks . | . . . Damage Inflicted 829 | . 653 176 Guns 333 | . 245 88 Cannons 475 | . 387 88 Explosions 21 | . 21 . Melee . | . . . Ramming . | . . . Kinetic 123 | . 93 30 Thermal 554 | . 408 146 Explosive . | . . . Electromagnetic 152 | . 152 . Impact . | . . . Slashing . | . . . Piercing . | . . . Highest Corruption . | . . . Average Corruption . | . . . Corruption Purged . | . . . Overload Shots . | . . . Overflow Damage 24 | . 24 . Projectiles . | . . . Explosions 24 | . 24 . Melee . | . . . Knockbacks . | . . . Impact . | . . . Kinetic . | . . . Secondary . | . . . Self-Inflicted Damage 216 | . 216 . Shots 3 | . 3 . Rammed . | . . . Targets Rammed . | . . . Kicked . | . . . Crushed . | . . . Highest Temperature 453 | . 453 340 Average Temperature 197 | . 189 220 Received Heat Transfer 363 | . 294 69 Effects 6 | . 6 . Shutdowns 2 | . 2 . Energy Bleed 4 | . 4 . Siege Activations . | . . . Robots Corrupted . | . . . Combat Hostiles . | . . . Parts Fried . | . . . Impact Corruptions . | . . . Robots Melted . | . . . Combat Hostiles . | . . . Parts Melted 2 | . 2 . Heat Transferred 1174 | . 864 310 Parts Sabotaged . | . . . Parts Stolen . | . . . Parts Stripped . | . . . Power Chain Reactions 1 | . 1 . Missiles Intercepted . | . . . Alert | -11 -10 -10 ------- Run | Scr Mat Min Peak Influence 159 | . 159 84 Average Influence 58 | . 66 71 Maximum Alert Level . | . . . Low Security (%) 100 | . . . Level 1 . | . . . Level 2 . | . . . Level 3 . | . . . Level 4 . | . . . Level 5 . | . . . High Security . | . . . Max Security . | . . . Squads Dispatched . | . . . Investigation . | . . . Extermination . | . . . Reinforcement . | . . . Assault . | . . . Garrison . | . . . Intercept . | . . . Construction Impeded . | . . . Haulers Reinforced . | . . . Stealth | -11 -10 -10 --------- Run | Scr Mat Min Distress Signals . | . . . Communications Jammed . | . . . Distress Signals . | . . . Times Spotted 14 | . 9 5 Peak Tracking Total 3 | . 3 3 Tactical Retreats . | . . . Traps | -11 -10 -10 ------- Run | Scr Mat Min Traps Triggered . | . . . Indirectly . | . . . Trap Hack Attempts . | . . . Triggered . | . . . Disarmed . | . . . Reprogrammed . | . . . Reused . | . . . Traps Extracted . | . . . Installed . | . . . Triggered . | . . . Machines | -11 -10 -10 ---------- Run | Scr Mat Min Machines Disabled 2 | . 2 . Max in Single Turn 2 | . 2 . Machines Sabotaged . | . . . Garrisons Compromised . | . . . Overloaded Fab Kills . | . . . Fab Network Shutdowns . | . . . Hacking | -11 -10 -10 --------- Run | Scr Mat Min Machines Accessed 2 | . 2 . Terminals 2 | . 2 . Fabricators . | . . . Repair Stations . | . . . Recycling Units . | . . . Scanalyzers . | . . . Garrison Access . | . . . Total Hacks 2 | . 2 . Successful 1 | . 1 . Failed 1 | . 1 . Catastrophic . | . . . Database Lockouts . | . . . Manual . | . . . Terminals 2 | . 2 . Fabricators . | . . . Repair Stations . | . . . Recycling Units . | . . . Scanalyzers . | . . . Garrison Access . | . . . Terminal Hacks 1 | . 1 . Prototype ID Bank 1 | . 1 . Fabricator Hacks . | . . . Repair Station Hacks . | . . . Recycling Unit Hacks . | . . . Scanalyzer . | . . . Garrison Access Hacks . | . . . Unauthorized Hacks . | . . . Terminals . | . . . Fabricators . | . . . Repair Stations . | . . . Recycling Units . | . . . Scanalyzers . | . . . Garrison Access . | . . . Data Cores Recovered . | . . . Used . | . . . Hacking Detections . | . . . Full Trace Events . | . . . Feedback Events . | . . . Feedback Blocked . | . . . Robot Schematics Acquired . | . . . Robots Built . | . . . Matter . | . . . Time . | . . . Total Robot Build Rating . | . . . Part Schematics Acquired . | . . . Parts Built . | . . . Matter . | . . . Time . | . . . Total Part Build Rating . | . . . Parts Repaired . | . . . Time . | . . . Parts Recycled . | . . . Recycled Matter . | . . . Retrieved Matter . | . . . Retrieved Components . | . . . Parts Scanalyzed . | . . . Part Schematics Acquired . | . . . Parts Damaged . | . . . Bothacking | -11 -10 -10 ------------ Run | Scr Mat Min Used RIF Installer . | . . . Robots Hacked . | . . . Non-combat . | . . . Combat . | . . . Robot Hacks Applied . | . . . Relay Couplers Released . | . . . Robots Rewired . | . . . Allies Hacked . | . . . Hacks Repelled . | . . . Allies | -11 -10 -10 -------- Run | Scr Mat Min Total Allies . | . . . Largest Group . | . . . Highest-Rated Group . | . . . Highest-Rated Ally . | . . . Total Orders . | . . . Ally Attacks . | . . . Total Damage . | . . . Kills . | . . . Allies Corrupted . | . . . Allies Melted . | . . . Intel | -11 -10 -10 ------- Run | Scr Mat Min Robot Analysis Total . | . . . Derelict Logs Recovered . | . . . Drone Launches . | . . . Drone Recoveries . | . . . Exploration | -11 -10 -10 ------------- Run | Scr Mat Min Turns Passed 749 | 86 619 44 Spaces Moved 482 | 61 413 8 Core 32 | 15 17 . Treads . | . . . Legs 284 | 39 237 8 Wheels 7 | 7 . . Hover . | . . . Flight 159 | . 159 . Fastest Speed 37 | 50 37 120 Average Speed 104 | 111 103 120 Slowest Speed 250 | 150 250 120 Overloaded Moves . | . . . Propulsion Burnouts . | . . . Robots Hopped 1 | . 1 . Cave-ins Triggered . | . . . Exploration Rate (%) 17 | 4 45 4 Regions Visited 2 Branch Regions 1 Pre-discovered Areas . | . . . Known Exits Taken . | . . . Unknown Exits Taken 2 | 1 1 . Scrap Searched . | . . . Spaces Dug . | . . . Terrain Destroyed 34 | . 34 . Melee . | . . . Projectile . | . . . AOE 34 | . 34 . Actions | -11 -10 -10 --------- Run | Scr Mat Min Total 652 | 80 550 22 Wait 22 | . 22 . Move 478 | 60 410 8 Hop 1 | . 1 . Pick Up 34 | 10 23 1 Fast Attach . | . . . Attach 30 | 8 21 1 Detach 4 | . 4 . Swap 5 | . 5 . Drop 17 | 2 15 . Fire 61 | . 49 12 Melee . | . . . Ram . | . . . Kick . | . . . Crush . | . . . Escape Stasis . | . . . Rewire . | . . . Trap . | . . . Miscellaneous . | . . . Route ------- -11/Scrapyard -10/Materials -10/Mines (discovered 1 exit: [*Mat]) History --------- Turn | Location | Event 22 | -11/Scrapyard | Discovered new exit (range 15) 87 | -11/Scrapyard | Entered Materials 317 | -10/Materials | Build established: Mutant 515 | -10/Materials | Core integrity fell below 50% 524 | -10/Materials | Core integrity fell below 20% 538 | -10/Materials | Lost 5 parts (1p2n2w) 631 | -10/Materials | Discovered new exit (range 7) 706 | -10/Materials | Entered Mines 706 | -10/Mines | Discovered new exit (range 8) 750 | -10/Mines | Destroyed by G-34 Mercenary with Small Laser Last Messages --------------- 00643_ Acquired Mining Laser. 00647_ Dropped Mining Laser. 00674_ K-01 Serf collects debris. 00674_ Acquired 30 matter. 00675_ Acquired 20 matter. 00677_ K-01 Serf collects debris. LOCATION=UNKNOWN GOAL=ESCAPE Something is scanning the area. 00706_ EXIT=FOUND 00708_ S-10 Pest destroyed. 00723_ Sml. Laser destroyed. 00727_ R-06 Scavenger collects Flight Unit. 00728_ S-10 Pest destroyed. 00729_ R-06 Scavenger collects Flight Unit. 00736_ Acquired Lgt. Assault Rifle. 00736_ R-06 Scavenger collects Flight Unit. 00738_ Acquired 10 matter. 00742_ Lgt. Ion Engine destroyed. 00746_ Beam Cannon destroyed. Map ----- +----------------------------------------------------+ | ??????????????????????????????????? | | ??????????????????????????????????? | | ??????????????????????????????????? | | ??????????????????????????????????? | | ??????????????????????????????????? | | ??????????????????????????????????? | | ??????????????????????????????????? | | ??????????????????????????????????? | | ??????????????????????????????????? | | ??????????????????????????????????? | | ??????????????????????????????????? | | ??????????????????????????????????? | | ??????????????????????????????????? | | ??????????????????????????????????? | | ??????????????????????????????????? | | ??????????????????????????????????? | | ??????????????????????????????????? | | ??????????????????????????????????? | | ??????????????????????????????????? | | ??????????????????????????????????? | | ??????????????????????????????????? | | ??????????????????????????????????? | | ??????????????????????????????????? | | ??????????????????????????????????? | | ???????????? ############?????? | | ????????????# %@% ##????? | | ?????????????# r % #????? | | ?????????????## #### #????? | | ??????????????#???????## g##????? | | ???????????????????????####g#?????? | | ??????????????????????????# #?????? | | ??????????????????????????# #?????? | | ??????????????????????????# #?????? | | ??????????????????????????# #?????? | | ?????????????????????????? < ?????? | | ?????????????????????????? ?????? | | ?????????????????????????? ?????? | | ?????????????????????????? ?????? | | ?????????????????????????? ?????? | | ??????????????????????????###?????? | | ??????????????????????????????????? | | ??????????????????????????????????? | | ??????????????????????????????????? | | ??????????????????????????????????? | | ??????????????????????????????????? | | ??????????????????????????????????? | | ??????????????????????????????????? | | ??????????????????????????????????? | | ??????????????????????????????????? | | ??????????????????????????????????? | +----------------------------------------------------+ Best States ------------- Heat Dissipation 25 Energy Generation 10 Energy Capacity 250 Matter Stores 300 Matter Capacity 300 Sight Range 16 Robot Scan Range 10 Terrain Scan Density 10 Armor Coverage 150 Utility Shielding 33 Evasion (%) 62 Item Schematics ----------------- None Robot Schematics ------------------ None Fabricated ------------ Nothing Alien Tech Used ----------------- None Achievements -------------- None Challenges ------------ None Game ------ Seed BackupArmorAnalyzer Manual? 0 Play Time 00:18:08 Cumulative 3.6 hours Start 2019.10.30 @ 22:02:23 End 2019.10.30 @ 22:20:46 Sessions 1 Manual Loads 0 Difficulty Rogue Special Mode None Game No. 13 Rogue 13 Adventurer 0 Explorer 0 Win Type - Total 0 Types 0/0/0/0/0/0/0 Lore% 0 Gallery% 9 Achievement% 5 Wizard Run 0 Options --------- ASCII 0 Keyboard 0 Movement Mouse Keybinds 0 Fullscreen 1 Font 18/SmallcapsGlow Map View 76x50 Tactical HUD 1 Map Filters NONE Filters NONE Steam 1 RUN: 3159bfbd-10fd-45af-950a-123a0cbbccbe